[Event "Early-Titled-Tuesday-Blitz-April-23-2024"]
[Site "Chess.com"]
[Date "2024.04.23"]
[Round "6"]
[White "js20000"]
[Black "TigrVShlyape"]
[Result "0-1"]
[WhiteElo "2738"]
[BlackElo "3027"]
[TimeControl "180+1"]
[EndTime "9:09:31 PDT"]
[Termination "TigrVShlyape won by resignation"]

1. b3 {[%clk 0:03:00.9]} 1... d5 {[%clk 0:02:57.9]} 2. Bb2 {[%clk 0:03:00.7]}
2... Bf5 {[%clk 0:02:58.5]} 3. Nf3 {[%clk 0:03:00]} 3... e6 {[%clk 0:02:58.9]}
4. g3 {[%clk 0:03:00.1]} 4... Nf6 {[%clk 0:02:58.1]} 5. d3 {[%clk 0:02:58.9]}
5... h6 {[%clk 0:02:57.5]} 6. Bg2 {[%clk 0:02:58.5]} 6... a5 {[%clk 0:02:57.9]}
7. c4 {[%clk 0:02:52.7]} 7... c6 {[%clk 0:02:57]} 8. Nc3 {[%clk 0:02:52]} 8...
Bh7 {[%clk 0:02:52]} 9. O-O {[%clk 0:02:51]} 9... Be7 {[%clk 0:02:50.7]} 10. a3
{[%clk 0:02:45.3]} 10... O-O {[%clk 0:02:50.3]} 11. Re1 {[%clk 0:02:38.4]} 11...
Na6 {[%clk 0:02:46.7]} 12. d4 {[%clk 0:02:36.5]} 12... Qb6 {[%clk 0:02:29.9]}
13. Ne5 {[%clk 0:02:21.6]} 13... Rfd8 {[%clk 0:02:27.8]} 14. e3 {[%clk
0:02:12.2]} 14... Nb8 {[%clk 0:02:09.4]} 15. c5 {[%clk 0:01:39.3]} 15... Qc7
{[%clk 0:02:06.8]} 16. b4 {[%clk 0:01:39.4]} 16... Nbd7 {[%clk 0:01:57.6]} 17.
Nxd7 {[%clk 0:01:30]} 17... Nxd7 {[%clk 0:01:55.8]} 18. b5 {[%clk 0:01:21.2]}
18... b6 {[%clk 0:01:11.3]} 19. bxc6 {[%clk 0:01:19.1]} 19... Nf6 {[%clk
0:01:09.1]} 20. Qa4 {[%clk 0:00:33.5]} 20... bxc5 {[%clk 0:01:07.8]} 21. dxc5
{[%clk 0:00:32.5]} 21... Rdb8 {[%clk 0:00:56.6]} 22. Bc1 {[%clk 0:00:24.9]}
22... Ra6 {[%clk 0:00:52.2]} 23. e4 {[%clk 0:00:22.9]} 23... dxe4 {[%clk
0:00:20]} 24. Nxe4 {[%clk 0:00:22]} 24... Nxe4 {[%clk 0:00:20.1]} 25. Bxe4
{[%clk 0:00:19.5]} 25... Bxe4 {[%clk 0:00:20]} 26. Bf4 {[%clk 0:00:19.6]} 26...
e5 {[%clk 0:00:19.3]} 27. Qxe4 {[%clk 0:00:19]} 27... exf4 {[%clk 0:00:17.2]}
28. Qxe7 {[%clk 0:00:18.7]} 28... Rxc6 {[%clk 0:00:15.3]} 29. Qxc7 {[%clk
0:00:18.3]} 29... Rxc7 {[%clk 0:00:15.6]} 30. Rac1 {[%clk 0:00:18.4]} 30... fxg3
{[%clk 0:00:15.6]} 31. hxg3 {[%clk 0:00:18.9]} 31... Rb3 {[%clk 0:00:14.9]} 32.
Re3 {[%clk 0:00:19]} 32... Rxe3 {[%clk 0:00:14.7]} 33. fxe3 {[%clk 0:00:19.9]}
33... Kf8 {[%clk 0:00:14]} 34. Kf2 {[%clk 0:00:20.5]} 34... Ke7 {[%clk
0:00:14.3]} 35. Kf3 {[%clk 0:00:19.6]} 35... Kd7 {[%clk 0:00:13.4]} 36. Ke4
{[%clk 0:00:11.8]} 36... Kc6 {[%clk 0:00:13.9]} 37. Kd4 {[%clk 0:00:10]} 37...
Rd7+ {[%clk 0:00:14.1]} 38. Kc4 {[%clk 0:00:09.4]} 38... Rd5 {[%clk 0:00:14.4]}
39. Rf1 {[%clk 0:00:07.7]} 39... Rxc5+ {[%clk 0:00:14.3]} 40. Kd4 {[%clk
0:00:08.4]} 40... f6 {[%clk 0:00:14.5]} 41. Rb1 {[%clk 0:00:07.2]} 41... Rg5
{[%clk 0:00:14.2]} 42. Rb8 {[%clk 0:00:04.8]} 42... Rg4+ {[%clk 0:00:13.2]} 43.
e4 {[%clk 0:00:04.4]} 43... Rxg3 {[%clk 0:00:13.6]} 44. Ra8 {[%clk 0:00:04.2]}
44... Rxa3 {[%clk 0:00:13.5]} 45. Ra6+ {[%clk 0:00:04.8]} 45... Kb7 {[%clk
0:00:12]} 46. Re6 {[%clk 0:00:04.6]} 46... Ra4+ {[%clk 0:00:12.1]} 47. Kc5
{[%clk 0:00:04.9]} 47... Rb4 {[%clk 0:00:11]} 48. Re7+ {[%clk 0:00:05.3]} 48...
Ka6 {[%clk 0:00:11.4]} 49. Re6+ {[%clk 0:00:05.8]} 49... Ka7 {[%clk 0:00:11.2]}
50. Re7+ {[%clk 0:00:05.4]} 50... Rb7 {[%clk 0:00:11.3]} 51. Re8 {[%clk
0:00:05.1]} 51... a4 {[%clk 0:00:11.4]} 52. Rd8 {[%clk 0:00:05.7]} 52... Re7
{[%clk 0:00:08.6]} 53. Rd4 {[%clk 0:00:04.8]} 53... Re5+ {[%clk 0:00:08.7]} 54.
Kb4 {[%clk 0:00:04.9]} 54... Kb6 {[%clk 0:00:08.8]} 55. Kxa4 {[%clk 0:00:03.2]}
55... Kc5 {[%clk 0:00:09.2]} 56. Rb4 {[%clk 0:00:03.6]} 56... h5 {[%clk
0:00:09.2]} 57. Rb7 {[%clk 0:00:03.6]} 57... Rxe4+ {[%clk 0:00:07.8]} 58. Kb3
{[%clk 0:00:03.7]} 58... Rg4 {[%clk 0:00:07.7]} 59. Kc2 {[%clk 0:00:03.6]} 59...
h4 {[%clk 0:00:07.9]} 60. Rb3 {[%clk 0:00:02.9]} 60... Rg2+ {[%clk 0:00:07.4]}
61. Kd1 {[%clk 0:00:02.6]} 61... g5 {[%clk 0:00:05.5]} 62. Ke1 {[%clk
0:00:02.8]} 62... g4 {[%clk 0:00:05.5]} 63. Kf1 {[%clk 0:00:03.1]} 63... h3
{[%clk 0:00:05.1]} 0-1

[Event "Early-Titled-Tuesday-Blitz-April-23-2024"]
[Site "Chess.com"]
[Date "2024.04.23"]
[Round "6"]
[White "FoxOnTheRun97"]
[Black "Evgeny81"]
[Result "0-1"]
[WhiteElo "2583"]
[BlackElo "2785"]
[TimeControl "180+1"]
[EndTime "9:09:32 PDT"]
[Termination "Evgeny81 won by checkmate"]

1. d4 {[%clk 0:03:00.9]} 1... Nf6 {[%clk 0:03:00]} 2. Bg5 {[%clk 0:03:01]} 2...
g6 {[%clk 0:02:58.8]} 3. Bxf6 {[%clk 0:03:01]} 3... exf6 {[%clk 0:02:59]} 4. e3
{[%clk 0:03:01.6]} 4... Bg7 {[%clk 0:02:59.3]} 5. g3 {[%clk 0:03:02.2]} 5... d5
{[%clk 0:02:59.6]} 6. Bg2 {[%clk 0:03:02.8]} 6... c6 {[%clk 0:03:00.2]} 7. Ne2
{[%clk 0:03:03.4]} 7... O-O {[%clk 0:03:00.8]} 8. O-O {[%clk 0:03:03.4]} 8... f5
{[%clk 0:03:01.3]} 9. b3 {[%clk 0:02:59.7]} 9... Nd7 {[%clk 0:03:00.8]} 10. c4
{[%clk 0:02:59.5]} 10... Nf6 {[%clk 0:02:58.1]} 11. Nbc3 {[%clk 0:02:58.4]}
11... Be6 {[%clk 0:02:54.9]} 12. Nf4 {[%clk 0:02:53]} 12... Qd7 {[%clk
0:02:53.6]} 13. Qd3 {[%clk 0:02:46.4]} 13... Ne4 {[%clk 0:02:42]} 14. cxd5
{[%clk 0:02:37.5]} 14... cxd5 {[%clk 0:02:41.9]} 15. Rfc1 {[%clk 0:02:30.4]}
15... Rfc8 {[%clk 0:02:38]} 16. Nxe6 {[%clk 0:02:19.8]} 16... fxe6 {[%clk
0:02:37.6]} 17. Nxe4 {[%clk 0:02:19.6]} 17... fxe4 {[%clk 0:02:36.9]} 18. Qd2
{[%clk 0:02:18.7]} 18... Rc6 {[%clk 0:02:26.4]} 19. Rxc6 {[%clk 0:02:17.4]}
19... bxc6 {[%clk 0:02:26.7]} 20. Rc1 {[%clk 0:02:16.3]} 20... Rc8 {[%clk
0:02:24]} 21. Qa5 {[%clk 0:02:07.7]} 21... Qb7 {[%clk 0:02:17]} 22. Bf1 {[%clk
0:02:01]} 22... Rc7 {[%clk 0:01:59.7]} 23. Bb5 {[%clk 0:01:53.4]} 23... Bf8
{[%clk 0:01:45.1]} 24. Bf1 {[%clk 0:01:31.3]} 24... Bd6 {[%clk 0:01:23]} 25. h4
{[%clk 0:01:28.6]} 25... Kg7 {[%clk 0:01:21.4]} 26. Bh3 {[%clk 0:01:24.6]} 26...
Kf6 {[%clk 0:01:19.9]} 27. Qd2 {[%clk 0:01:22.1]} 27... Rf7 {[%clk 0:01:06.1]}
28. Qe2 {[%clk 0:01:20.5]} 28... Ke7 {[%clk 0:01:05.7]} 29. Qg4 {[%clk
0:01:16.7]} 29... Rf5 {[%clk 0:01:00.3]} 30. h5 {[%clk 0:01:00.1]} 30... g5
{[%clk 0:00:59.8]} 31. h6 {[%clk 0:00:56.8]} 31... Qb4 {[%clk 0:00:41.8]} 32.
Qh5 {[%clk 0:00:47.1]} 32... Rxf2 {[%clk 0:00:32]} 33. Qxg5+ {[%clk 0:00:34.6]}
33... Kd7 {[%clk 0:00:32.4]} 34. Qg7+ {[%clk 0:00:24.2]} 34... Be7 {[%clk
0:00:30.3]} 35. Bxe6+ {[%clk 0:00:10.7]} 35... Kxe6 {[%clk 0:00:27.6]} 36. Rxc6+
{[%clk 0:00:09.9]} 36... Kd7 {[%clk 0:00:24.8]} 37. Kxf2 {[%clk 0:00:09.1]}
37... Kxc6 {[%clk 0:00:16.7]} 38. Qxh7 {[%clk 0:00:09.3]} 38... Qd2+ {[%clk
0:00:16.7]} 39. Kf1 {[%clk 0:00:09.9]} 39... Qd1+ {[%clk 0:00:16.7]} 40. Kg2
{[%clk 0:00:09.5]} 40... Qf3+ {[%clk 0:00:16.8]} 41. Kh3 {[%clk 0:00:08.6]}
41... Qh5+ {[%clk 0:00:16.7]} 42. Kg2 {[%clk 0:00:08.6]} 42... Bg5 {[%clk
0:00:16.6]} 43. Qxa7 {[%clk 0:00:05.3]} 43... Qf3+ {[%clk 0:00:15.4]} 44. Kh3
{[%clk 0:00:05.1]} 44... Qh5+ {[%clk 0:00:14.1]} 45. Kg2 {[%clk 0:00:04.8]}
45... Qxh6 {[%clk 0:00:12.7]} 46. Qa6+ {[%clk 0:00:04.5]} 46... Kc7 {[%clk
0:00:12.7]} 47. Qa7+ {[%clk 0:00:04.1]} 47... Kd8 {[%clk 0:00:12.9]} 48. Qa8+
{[%clk 0:00:04.3]} 48... Ke7 {[%clk 0:00:13.2]} 49. Qb7+ {[%clk 0:00:03.8]}
49... Kf8 {[%clk 0:00:13.3]} 50. Qxd5 {[%clk 0:00:03]} 50... Bxe3 {[%clk
0:00:13.1]} 51. Qxe4 {[%clk 0:00:03.4]} 51... Bc1 {[%clk 0:00:12.1]} 52. Kf3
{[%clk 0:00:03.6]} 52... Qh1+ {[%clk 0:00:10.2]} 53. Kg4 {[%clk 0:00:02.4]}
53... Qxe4+ {[%clk 0:00:11.1]} 54. Kh5 {[%clk 0:00:02.5]} 54... Qxd4 {[%clk
0:00:11.4]} 55. g4 {[%clk 0:00:02.5]} 55... Qg7 {[%clk 0:00:11.3]} 56. Kh4
{[%clk 0:00:02.7]} 56... Qh6+ {[%clk 0:00:11.6]} 57. Kg3 {[%clk 0:00:03.6]}
57... Qg5 {[%clk 0:00:12.3]} 58. Kf3 {[%clk 0:00:04.1]} 58... Bf4 {[%clk
0:00:12.7]} 59. b4 {[%clk 0:00:04.7]} 59... Be5 {[%clk 0:00:13.1]} 60. a4 {[%clk
0:00:05.3]} 60... Qf4+ {[%clk 0:00:14]} 61. Ke2 {[%clk 0:00:05.3]} 61... Qxb4
{[%clk 0:00:14.8]} 62. Kd3 {[%clk 0:00:06.2]} 62... Qxa4 {[%clk 0:00:15.4]} 63.
g5 {[%clk 0:00:07.1]} 63... Qg4 {[%clk 0:00:15.7]} 64. g6 {[%clk 0:00:08]} 64...
Qd4+ {[%clk 0:00:16.1]} 65. Ke2 {[%clk 0:00:08.1]} 65... Qc3 {[%clk 0:00:16.6]}
66. Kf2 {[%clk 0:00:08.2]} 66... Bf4 {[%clk 0:00:16.8]} 67. Kg2 {[%clk
0:00:08.7]} 67... Kg8 {[%clk 0:00:17]} 68. g7 {[%clk 0:00:09.1]} 68... Qg3+
{[%clk 0:00:17.1]} 69. Kf1 {[%clk 0:00:09]} 69... Qh2 {[%clk 0:00:17.3]} 70. Ke1
{[%clk 0:00:08.7]} 70... Be3 {[%clk 0:00:17.6]} 71. Kf1 {[%clk 0:00:09.6]} 71...
Qf2# {[%clk 0:00:17.8]} 0-1

[Event "Early-Titled-Tuesday-Blitz-April-23-2024"]
[Site "Chess.com"]
[Date "2024.04.23"]
[Round "6"]
[White "PawnEatingZombie"]
[Black "dvglko"]
[Result "0-1"]
[WhiteElo "2224"]
[BlackElo "2435"]
[TimeControl "180+1"]
[EndTime "9:09:32 PDT"]
[Termination "dvglko won by resignation"]

1. e4 {[%clk 0:02:59.6]} 1... c6 {[%clk 0:03:00.4]} 2. Nf3 {[%clk 0:02:58.8]}
2... d5 {[%clk 0:03:01.3]} 3. d3 {[%clk 0:02:59]} 3... dxe4 {[%clk 0:03:01.1]}
4. dxe4 {[%clk 0:02:59.9]} 4... Qxd1+ {[%clk 0:03:01.3]} 5. Kxd1 {[%clk
0:03:00]} 5... Nf6 {[%clk 0:02:59.6]} 6. Nfd2 {[%clk 0:02:57.3]} 6... b6 {[%clk
0:02:45.5]} 7. Bd3 {[%clk 0:02:56.7]} 7... Ba6 {[%clk 0:02:44.7]} 8. Ke2 {[%clk
0:02:56.9]} 8... g6 {[%clk 0:02:33.1]} 9. a4 {[%clk 0:02:55.2]} 9... Bxd3+
{[%clk 0:02:31.4]} 10. cxd3 {[%clk 0:02:54.5]} 10... a5 {[%clk 0:02:31]} 11. Na3
{[%clk 0:02:47]} 11... Bg7 {[%clk 0:02:28.8]} 12. Nac4 {[%clk 0:02:46.4]} 12...
Nfd7 {[%clk 0:02:28]} 13. Nb3 {[%clk 0:02:38.9]} 13... Na6 {[%clk 0:02:24.5]}
14. d4 {[%clk 0:02:31.7]} 14... O-O {[%clk 0:02:13.4]} 15. f3 {[%clk 0:02:31.5]}
15... Nb4 {[%clk 0:02:00.4]} 16. Be3 {[%clk 0:02:20]} 16... Nc2 {[%clk
0:01:49.9]} 17. Rac1 {[%clk 0:02:16.7]} 17... Nxe3 {[%clk 0:01:45.6]} 18. Nxe3
{[%clk 0:02:15.1]} 18... c5 {[%clk 0:01:36.5]} 19. dxc5 {[%clk 0:02:06.5]} 19...
Nxc5 {[%clk 0:01:37.4]} 20. Nxc5 {[%clk 0:02:06.2]} 20... bxc5 {[%clk
0:01:38.3]} 21. Rxc5 {[%clk 0:01:52.2]} 21... Bxb2 {[%clk 0:01:36.8]} 22. Rb1
{[%clk 0:01:42.6]} 22... Bd4 {[%clk 0:01:24.3]} 23. Rd5 {[%clk 0:01:41.9]} 23...
Bc3 {[%clk 0:01:18.2]} 24. Rb7 {[%clk 0:01:34]} 24... e6 {[%clk 0:00:46.8]} 25.
Rdd7 {[%clk 0:01:32.9]} 25... Rad8 {[%clk 0:00:46.6]} 26. h4 {[%clk 0:01:17.5]}
26... h5 {[%clk 0:00:35.8]} 27. g4 {[%clk 0:01:17.4]} 27... hxg4 {[%clk
0:00:32.9]} 28. fxg4 {[%clk 0:01:17.4]} 28... Rxd7 {[%clk 0:00:31.2]} 29. Rxd7
{[%clk 0:01:17.3]} 29... Rb8 {[%clk 0:00:30.8]} 30. h5 {[%clk 0:01:11.3]} 30...
gxh5 {[%clk 0:00:27.1]} 31. gxh5 {[%clk 0:01:11.2]} 31... Rb4 {[%clk 0:00:27.8]}
32. Kf3 {[%clk 0:01:09.3]} 32... Rxa4 {[%clk 0:00:24.9]} 33. Ng4 {[%clk
0:01:08.3]} 33... Bg7 {[%clk 0:00:19.5]} 34. h6 {[%clk 0:01:03.1]} 34... Ra3+
{[%clk 0:00:19.4]} 35. Kf4 {[%clk 0:01:02.2]} 35... Bb2 {[%clk 0:00:14.6]} 36.
e5 {[%clk 0:01:01.7]} 36... Bc1+ {[%clk 0:00:11.6]} 37. Ke4 {[%clk 0:00:59.5]}
37... Ra4+ {[%clk 0:00:08]} 38. Kf3 {[%clk 0:00:58.4]} 38... Rf4+ {[%clk
0:00:06.3]} 39. Kg3 {[%clk 0:00:58.6]} 39... Rxg4+ {[%clk 0:00:06.2]} 40. Kxg4
{[%clk 0:00:58.3]} 40... Bxh6 {[%clk 0:00:07.1]} 41. Ra7 {[%clk 0:00:53.3]}
41... Bd2 {[%clk 0:00:06.7]} 42. Kh5 {[%clk 0:00:47.3]} 42... Kg7 {[%clk
0:00:06.9]} 43. Ra6 {[%clk 0:00:43.7]} 43... Bc3 {[%clk 0:00:06.4]} 44. Ra8
{[%clk 0:00:42.8]} 44... Bb4 {[%clk 0:00:06.9]} 45. Ra6 {[%clk 0:00:42.3]} 45...
Bc3 {[%clk 0:00:07.4]} 46. Ra8 {[%clk 0:00:42.3]} 46... Bd2 {[%clk 0:00:07.9]}
47. Ra6 {[%clk 0:00:41.9]} 47... Be1 {[%clk 0:00:08.5]} 48. Ra8 {[%clk
0:00:41.3]} 48... Bc3 {[%clk 0:00:09.1]} 49. Ra6 {[%clk 0:00:41.2]} 49... Bxe5
{[%clk 0:00:09.3]} 50. Rxa5 {[%clk 0:00:40.5]} 50... Bc3 {[%clk 0:00:09.7]} 51.
Rb5 {[%clk 0:00:40.1]} 51... Kf6 {[%clk 0:00:08.5]} 52. Kg4 {[%clk 0:00:40]}
52... Bd4 {[%clk 0:00:07.4]} 53. Kf3 {[%clk 0:00:39.1]} 53... Kg6 {[%clk
0:00:05.7]} 54. Ke4 {[%clk 0:00:38.9]} 54... Bg7 {[%clk 0:00:06]} 55. Kf3 {[%clk
0:00:37.6]} 55... Bd4 {[%clk 0:00:04.9]} 56. Ra5 {[%clk 0:00:36.6]} 56... f5
{[%clk 0:00:04]} 57. Rb5 {[%clk 0:00:36.7]} 57... Kf6 {[%clk 0:00:04.5]} 58. Ra5
{[%clk 0:00:36]} 58... Kg5 {[%clk 0:00:04.7]} 59. Rb5 {[%clk 0:00:35.1]} 59...
e5 {[%clk 0:00:04.8]} 60. Ra5 {[%clk 0:00:34.2]} 60... e4+ {[%clk 0:00:05.3]}
61. Ke2 {[%clk 0:00:34.3]} 61... Kg4 {[%clk 0:00:04.6]} 62. Rb5 {[%clk
0:00:33.1]} 62... Bc3 {[%clk 0:00:04.2]} 63. Rc5 {[%clk 0:00:32.4]} 63... Bd4
{[%clk 0:00:04]} 64. Rd5 {[%clk 0:00:32.4]} 64... Bb6 {[%clk 0:00:03.7]} 65. Rb5
{[%clk 0:00:32.5]} 65... Bd4 {[%clk 0:00:03.7]} 66. Rd5 {[%clk 0:00:32.5]} 66...
Bg1 {[%clk 0:00:04.4]} 67. Rd8 {[%clk 0:00:32.2]} 67... Bc5 {[%clk 0:00:04]} 68.
Rg8+ {[%clk 0:00:32.2]} 68... Kf4 {[%clk 0:00:04.1]} 69. Rf8 {[%clk 0:00:32.4]}
69... Bxf8 {[%clk 0:00:04.2]} 0-1

[Event "Early-Titled-Tuesday-Blitz-April-23-2024"]
[Site "Chess.com"]
[Date "2024.04.23"]
[Round "6"]
[White "Hikaru"]
[Black "wonderfultime"]
[Result "1-0"]
[WhiteElo "3299"]
[BlackElo "3066"]
[TimeControl "180+1"]
[EndTime "9:09:34 PDT"]
[Termination "Hikaru won by resignation"]

1. h4 {[%clk 0:03:00.9]} 1... h5 {[%clk 0:02:57.6]} 2. e4 {[%clk 0:02:53.8]}
2... e5 {[%clk 0:02:52.6]} 3. Bc4 {[%clk 0:02:49]} 3... Nc6 {[%clk 0:02:39.5]}
4. d3 {[%clk 0:02:34]} 4... Bc5 {[%clk 0:02:37.7]} 5. c3 {[%clk 0:02:24.5]} 5...
d6 {[%clk 0:02:36.9]} 6. Nf3 {[%clk 0:02:22.6]} 6... f6 {[%clk 0:02:00.5]} 7. d4
{[%clk 0:01:53.6]} 7... Bb6 {[%clk 0:01:59.5]} 8. a4 {[%clk 0:01:49.6]} 8... a6
{[%clk 0:01:57.8]} 9. Be3 {[%clk 0:01:49.3]} 9... Nh6 {[%clk 0:01:49.2]} 10. a5
{[%clk 0:01:32.4]} 10... Ba7 {[%clk 0:01:47.6]} 11. Na3 {[%clk 0:01:22.6]} 11...
Ng4 {[%clk 0:01:43.2]} 12. Nc2 {[%clk 0:01:22.6]} 12... Qe7 {[%clk 0:01:40.3]}
13. d5 {[%clk 0:01:20.8]} 13... Nxe3 {[%clk 0:01:34]} 14. Nxe3 {[%clk
0:01:19.9]} 14... Nd8 {[%clk 0:01:34.7]} 15. Qd2 {[%clk 0:01:17.3]} 15... Nf7
{[%clk 0:01:34.1]} 16. b4 {[%clk 0:01:09.6]} 16... Bd7 {[%clk 0:01:33.9]} 17.
Be2 {[%clk 0:01:06.6]} 17... g6 {[%clk 0:01:30.9]} 18. Qc2 {[%clk 0:00:57.9]}
18... Nh6 {[%clk 0:01:30.9]} 19. O-O-O {[%clk 0:00:53.2]} 19... Kf7 {[%clk
0:01:27.3]} 20. Qd2 {[%clk 0:00:49.2]} 20... Kg7 {[%clk 0:01:24.7]} 21. Kb2
{[%clk 0:00:49]} 21... Rad8 {[%clk 0:01:24.1]} 22. Ne1 {[%clk 0:00:47.8]} 22...
Ng4 {[%clk 0:01:13.5]} 23. Nxg4 {[%clk 0:00:42.3]} 23... hxg4 {[%clk 0:01:14.4]}
24. Bd3 {[%clk 0:00:42.1]} 24... f5 {[%clk 0:01:11.9]} 25. g3 {[%clk 0:00:39.4]}
25... Rdf8 {[%clk 0:01:11.1]} 26. Rh2 {[%clk 0:00:39.9]} 26... f4 {[%clk
0:01:10.9]} 27. Be2 {[%clk 0:00:37]} 27... g5 {[%clk 0:00:59.8]} 28. h5 {[%clk
0:00:37]} 28... Kh6 {[%clk 0:01:00.3]} 29. Nc2 {[%clk 0:00:36.1]} 29... Rf6
{[%clk 0:00:57.7]} 30. Rdh1 {[%clk 0:00:29.8]} 30... Rhf8 {[%clk 0:00:57.3]} 31.
Qd1 {[%clk 0:00:30.4]} 31... f3 {[%clk 0:00:49]} 32. Bc4 {[%clk 0:00:30.4]}
32... Rc8 {[%clk 0:00:45.8]} 33. Qd2 {[%clk 0:00:30.3]} 33... c6 {[%clk
0:00:40.7]} 34. dxc6 {[%clk 0:00:31.2]} 34... Bxc6 {[%clk 0:00:41.1]} 35. Ne3
{[%clk 0:00:31.6]} 35... Bxe3 {[%clk 0:00:39.8]} 36. Qxe3 {[%clk 0:00:32.3]}
36... Rff8 {[%clk 0:00:28.6]} 37. Rd1 {[%clk 0:00:31.7]} 37... Rc7 {[%clk
0:00:26.8]} 38. Bb3 {[%clk 0:00:31.9]} 38... Bb5 {[%clk 0:00:26.4]} 39. Rhh1
{[%clk 0:00:29.9]} 39... Rfc8 {[%clk 0:00:26.1]} 40. Rd2 {[%clk 0:00:27.3]}
40... Be2 {[%clk 0:00:24.7]} 41. Rc1 {[%clk 0:00:26.8]} 41... Kxh5 {[%clk
0:00:18.2]} 42. Bd5 {[%clk 0:00:27.1]} 42... Kg6 {[%clk 0:00:15.9]} 43. Qb6
{[%clk 0:00:27.1]} 43... Bb5 {[%clk 0:00:16.5]} 44. c4 {[%clk 0:00:24.2]} 44...
Bc6 {[%clk 0:00:15]} 45. c5 {[%clk 0:00:24.2]} 45... dxc5 {[%clk 0:00:11.9]} 46.
Rxc5 {[%clk 0:00:25.1]} 46... Kg7 {[%clk 0:00:12.3]} 47. Rdc2 {[%clk 0:00:25.6]}
47... Qd6 {[%clk 0:00:11.5]} 48. Ka3 {[%clk 0:00:19.6]} 48... Kf6 {[%clk
0:00:07.9]} 49. R2c3 {[%clk 0:00:18.7]} 49... Ke7 {[%clk 0:00:08.1]} 50. Kb2
{[%clk 0:00:19.3]} 50... Kd7 {[%clk 0:00:08.1]} 51. Rd3 {[%clk 0:00:16.9]} 51...
Ke7 {[%clk 0:00:06.4]} 52. Rdc3 {[%clk 0:00:15.6]} 52... Kd7 {[%clk 0:00:06.3]}
53. Bxc6+ {[%clk 0:00:13.6]} 53... bxc6 {[%clk 0:00:07.2]} 54. Qxa6 {[%clk
0:00:13.7]} 54... Ke7 {[%clk 0:00:06]} 55. Qd3 {[%clk 0:00:13.3]} 55... Qe6
{[%clk 0:00:05.8]} 56. Qc4 {[%clk 0:00:13.7]} 56... Qd6 {[%clk 0:00:06.1]} 57.
Rd3 {[%clk 0:00:13.3]} 57... Qf6 {[%clk 0:00:04]} 58. b5 {[%clk 0:00:13.7]}
58... Kf8 {[%clk 0:00:02.8]} 59. b6 {[%clk 0:00:14.2]} 59... Rb7 {[%clk
0:00:03.2]} 60. Rc3 {[%clk 0:00:14.9]} 60... Qd6 {[%clk 0:00:03.2]} 61. Rd3
{[%clk 0:00:15]} 61... Qe7 {[%clk 0:00:03.3]} 62. Qc3 {[%clk 0:00:14.7]} 62...
Rcb8 {[%clk 0:00:03.1]} 63. Qxe5 {[%clk 0:00:14.8]} 63... Rxb6+ {[%clk
0:00:03.2]} 64. axb6 {[%clk 0:00:14.2]} 64... Rxb6+ {[%clk 0:00:04.1]} 65. Kc2
{[%clk 0:00:14.9]} 65... Qa7 {[%clk 0:00:04.5]} 66. Qh8+ {[%clk 0:00:14]} 1-0